[Event "Early Titled Tuesday Blitz | February 8 2022"]
[White "Sovetbekova, Nurai"]
[Black "Quirke, Jeffrey"]
[WhiteFideId "13801910"]
[BlackFideId "2013029"]
[WhiteElo "1545"]
[BlackElo "2259"]
[Result "0-1"]
[Round "08"]
[TimeControl "180+1"]
[Date "2022.02.08"]
[WhiteClock "0:00:08"]
[BlackClock "0:00:21"]

1. d4 {[%clk 0:03:00]}  d5 {[%clk 0:02:59]} 2. c4 {[%clk 0:03:00]}  e6 {[%clk 0:03:00]} 3. Nf3 {[%clk 0:03:00]}  Nf6 {[%clk 0:02:59]} 4. g3 {[%clk 0:03:01]}  Bb4+ {[%clk 0:02:57]} 5. Bd2 {[%clk 0:03:00]}  a5 {[%clk 0:02:58]} 6. Bg2 {[%clk 0:02:59]}  O-O {[%clk 0:02:57]} 7. O-O {[%clk 0:02:59]}  dxc4 {[%clk 0:02:55]} 8. Qc2 {[%clk 0:02:55]}  Bxd2 {[%clk 0:02:54]} 9. Nbxd2 {[%clk 0:02:54]}  b5 {[%clk 0:02:55]} 10. a4 {[%clk 0:02:38]}  c6 {[%clk 0:02:54]} 11. b3 {[%clk 0:02:04]}  cxb3 {[%clk 0:02:52]} 12. Nxb3 {[%clk 0:02:05]}  b4 {[%clk 0:02:51]} 13. Ne5 {[%clk 0:01:57]}  Nd5 {[%clk 0:02:45]} 14. Nxc6 {[%clk 0:01:47]}  Nxc6 {[%clk 0:02:43]} 15. Qxc6 {[%clk 0:01:47]}  Ra6 {[%clk 0:02:32]} 16. Qc4 {[%clk 0:01:36]}  Nc3 {[%clk 0:01:55]} 17. e3 {[%clk 0:01:20]}  Rd6 {[%clk 0:01:35]} 18. Nc5 {[%clk 0:01:09]}  Qb6 {[%clk 0:01:27]} 19. Ne4 {[%clk 0:01:06]}  Ba6 {[%clk 0:01:13]} 20. Qc5 {[%clk 0:00:32]}  Nxe4 {[%clk 0:01:03]} 21. Bxe4 {[%clk 0:00:33]}  Bxf1 {[%clk 0:01:01]} 22. Rxf1 {[%clk 0:00:28]}  Rb8 {[%clk 0:00:55]} 23. Qh5 {[%clk 0:00:20]}  g6 {[%clk 0:00:54]} 24. Qe2 {[%clk 0:00:18]}  b3 {[%clk 0:00:51]} 25. Rb1 {[%clk 0:00:18]}  b2 {[%clk 0:00:51]} 26. Qc2 {[%clk 0:00:17]}  Rdd8 {[%clk 0:00:47]} 27. Qd2 {[%clk 0:00:15]}  Rdc8 {[%clk 0:00:45]} 28. Bc2 {[%clk 0:00:15]}  Qb4 {[%clk 0:00:42]} 29. Qd1 {[%clk 0:00:14]}  Qc3 {[%clk 0:00:37]} 30. Bd3 {[%clk 0:00:12]}  Qc1 {[%clk 0:00:28]} 31. Kg2 {[%clk 0:00:07]}  Qxd1 {[%clk 0:00:27]} 32. Rxd1 {[%clk 0:00:07]}  Rc1 {[%clk 0:00:27]} 33. Rd2 {[%clk 0:00:07]}  b1=Q {[%clk 0:00:25]} 34. Bxb1 {[%clk 0:00:08]}  Rbxb1 {[%clk 0:00:21]} 0-1


[Site "https://www.chess.com"]

[Event "Early Titled Tuesday Blitz | February 8 2022"]
[White "Srebrnic, Marko"]
[Black "Rostovtsev, Dmitry"]
[WhiteFideId "14603616"]
[BlackFideId "34278320"]
[WhiteElo "2340"]
[BlackElo "2218"]
[Result "0-1"]
[Round "08"]
[TimeControl "180+1"]
[Date "2022.02.08"]
[WhiteClock "0:00:02"]
[BlackClock "0:00:03"]

1. e4 {[%clk 0:03:00]}  g6 {[%clk 0:02:59]} 2. d4 {[%clk 0:02:58]}  Bg7 {[%clk 0:03:00]} 3. Nc3 {[%clk 0:02:58]}  d6 {[%clk 0:03:00]} 4. Be3 {[%clk 0:02:58]}  Nf6 {[%clk 0:02:59]} 5. f3 {[%clk 0:02:54]}  a6 {[%clk 0:02:59]} 6. a4 {[%clk 0:02:54]}  O-O {[%clk 0:02:57]} 7. Qd2 {[%clk 0:02:54]}  e5 {[%clk 0:02:54]} 8. h4 {[%clk 0:02:53]}  exd4 {[%clk 0:02:55]} 9. Bxd4 {[%clk 0:02:53]}  Nc6 {[%clk 0:02:55]} 10. Be3 {[%clk 0:02:53]}  h5 {[%clk 0:02:53]} 11. Nh3 {[%clk 0:02:52]}  Bxh3 {[%clk 0:02:52]} 12. Rxh3 {[%clk 0:02:52]}  Re8 {[%clk 0:02:52]} 13. Bc4 {[%clk 0:02:49]}  Ne5 {[%clk 0:02:50]} 14. Bb3 {[%clk 0:02:49]}  c6 {[%clk 0:02:50]} 15. O-O-O {[%clk 0:02:49]}  b5 {[%clk 0:02:50]} 16. Qxd6 {[%clk 0:02:45]}  Qa5 {[%clk 0:02:42]} 17. Bc5 {[%clk 0:02:31]}  bxa4 {[%clk 0:01:56]} 18. Bb4 {[%clk 0:02:27]}  Qb6 {[%clk 0:01:55]} 19. Nxa4 {[%clk 0:02:25]}  Qe3+ {[%clk 0:01:55]} 20. Bd2 {[%clk 0:02:23]}  Qf2 {[%clk 0:01:53]} 21. f4 {[%clk 0:02:10]}  Nxe4 {[%clk 0:01:50]} 22. Qc7 {[%clk 0:01:53]}  Ng4 {[%clk 0:01:49]} 23. Bxf7+ {[%clk 0:01:45]}  Kh7 {[%clk 0:01:49]} 24. Bxe8 {[%clk 0:01:43]}  Rxe8 {[%clk 0:01:50]} 25. Rd3 {[%clk 0:01:26]}  Qxh4 {[%clk 0:01:24]} 26. f5 {[%clk 0:01:20]}  gxf5 {[%clk 0:01:21]} 27. Rd7 {[%clk 0:01:17]}  Qf6 {[%clk 0:01:20]} 28. Bf4 {[%clk 0:01:04]}  Kg8 {[%clk 0:01:12]} 29. Rh1 {[%clk 0:00:52]}  h4 {[%clk 0:01:07]} 30. Rhd1 {[%clk 0:00:42]}  Nef2 {[%clk 0:00:56]} 31. Rf1 {[%clk 0:00:29]}  Bf8 {[%clk 0:00:39]} 32. Rh7 {[%clk 0:00:14]}  Bg7 {[%clk 0:00:33]} 33. Rh5 {[%clk 0:00:11]}  Ne4 {[%clk 0:00:30]} 34. c3 {[%clk 0:00:08]}  Qe6 {[%clk 0:00:17]} 35. Nb6 {[%clk 0:00:07]}  Re7 {[%clk 0:00:12]} 36. Qc8+ {[%clk 0:00:06]}  Kf7 {[%clk 0:00:12]} 37. Qxe6+ {[%clk 0:00:06]}  Kxe6 {[%clk 0:00:13]} 38. Nc4 {[%clk 0:00:06]}  Bf6 {[%clk 0:00:13]} 39. Ne3 {[%clk 0:00:03]}  Nxe3 {[%clk 0:00:06]} 40. Bxe3 {[%clk 0:00:04]}  Rg7 {[%clk 0:00:06]} 41. Rhxf5 {[%clk 0:00:03]}  Rxg2 {[%clk 0:00:06]} 42. R5f4 {[%clk 0:00:03]}  Kd5 {[%clk 0:00:05]} 43. Rf5+ {[%clk 0:00:03]}  Ke6 {[%clk 0:00:04]} 44. R1f4 {[%clk 0:00:02]}  h3 {[%clk 0:00:02]} 45. Rxe4+ {[%clk 0:00:02]}  Kxf5 {[%clk 0:00:02]} 46. Rf4+ {[%clk 0:00:03]}  Ke6 {[%clk 0:00:03]} 47. Re4+ {[%clk 0:00:03]}  Kd5 {[%clk 0:00:02]} 48. Rf4 {[%clk 0:00:01]}  h2 {[%clk 0:00:03]} 49. c4+ {[%clk 0:00:02]}  Ke6 {[%clk 0:00:03]} 50. Re4+ {[%clk 0:00:02]}  Be5 {[%clk 0:00:03]} 51. Bf4 {[%clk 0:00:02]}  h1=Q+ {[%clk 0:00:03]} 0-1


[Site "https://www.chess.com"]

[Event "Early Titled Tuesday Blitz | February 8 2022"]
[White "Srihari L R"]
[Black "Sadhwani, Raunak"]
[WhiteFideId "46617116"]
[BlackFideId "35093487"]
[WhiteElo "2121"]
[BlackElo "2616"]
[Result "0-1"]
[Round "08"]
[TimeControl "180+1"]
[Date "2022.02.08"]
[WhiteClock "0:00:02"]
[BlackClock "0:00:23"]

1. d4 {[%clk 0:01:07]}  Nf6 {[%clk 0:02:55]} 2. c4 {[%clk 0:01:07]}  g6 {[%clk 0:02:55]} 3. Nc3 {[%clk 0:01:07]}  Bg7 {[%clk 0:02:56]} 4. g3 {[%clk 0:01:06]}  O-O {[%clk 0:02:56]} 5. Bg2 {[%clk 0:01:07]}  d6 {[%clk 0:02:56]} 6. Nf3 {[%clk 0:01:07]}  Nbd7 {[%clk 0:02:57]} 7. O-O {[%clk 0:01:08]}  e5 {[%clk 0:02:58]} 8. e4 {[%clk 0:01:05]}  Re8 {[%clk 0:02:56]} 9. Re1 {[%clk 0:01:05]}  exd4 {[%clk 0:02:55]} 10. Nxd4 {[%clk 0:01:05]}  Nc5 {[%clk 0:02:55]} 11. h3 {[%clk 0:00:58]}  a5 {[%clk 0:02:55]} 12. Bg5 {[%clk 0:00:42]}  h6 {[%clk 0:02:53]} 13. Bf4 {[%clk 0:00:42]}  Bd7 {[%clk 0:02:33]} 14. Qc2 {[%clk 0:00:29]}  Qc8 {[%clk 0:02:33]} 15. Kh2 {[%clk 0:00:23]}  h5 {[%clk 0:02:26]} 16. Rad1 {[%clk 0:00:22]}  a4 {[%clk 0:02:14]} 17. b4 {[%clk 0:00:21]}  axb3 {[%clk 0:02:14]} 18. axb3 {[%clk 0:00:22]}  Ne6 {[%clk 0:02:04]} 19. Nxe6 {[%clk 0:00:22]}  Bxe6 {[%clk 0:02:04]} 20. Nd5 {[%clk 0:00:23]}  Nd7 {[%clk 0:01:36]} 21. Bg5 {[%clk 0:00:22]}  Kh7 {[%clk 0:01:25]} 22. Be3 {[%clk 0:00:18]}  Nc5 {[%clk 0:01:23]} 23. f4 {[%clk 0:00:17]}  Ra3 {[%clk 0:01:10]} 24. Rb1 {[%clk 0:00:15]}  Bxd5 {[%clk 0:01:08]} 25. cxd5 {[%clk 0:00:15]}  Qa8 {[%clk 0:01:09]} 26. Bxc5 {[%clk 0:00:15]}  Ra2 {[%clk 0:01:09]} 27. Qc4 {[%clk 0:00:12]}  dxc5 {[%clk 0:01:09]} 28. Re2 {[%clk 0:00:12]}  Bd4 {[%clk 0:01:05]} 29. b4 {[%clk 0:00:10]}  Rxe2 {[%clk 0:01:00]} 30. Qxe2 {[%clk 0:00:11]}  b6 {[%clk 0:00:54]} 31. bxc5 {[%clk 0:00:11]}  Bxc5 {[%clk 0:00:55]} 32. e5 {[%clk 0:00:11]}  Qa3 {[%clk 0:00:54]} 33. Rd1 {[%clk 0:00:11]}  Qb4 {[%clk 0:00:51]} 34. Rd3 {[%clk 0:00:10]}  h4 {[%clk 0:00:51]} 35. Qg4 {[%clk 0:00:10]}  hxg3+ {[%clk 0:00:50]} 36. Rxg3 {[%clk 0:00:10]}  Bf2 {[%clk 0:00:33]} 37. Rd3 {[%clk 0:00:04]}  Qe1 {[%clk 0:00:30]} 38. Rd1 {[%clk 0:00:04]}  Qe3 {[%clk 0:00:27]} 39. Qf3 {[%clk 0:00:04]}  Kg7 {[%clk 0:00:21]} 40. Qxe3 {[%clk 0:00:04]}  Bxe3 {[%clk 0:00:22]} 41. Kg3 {[%clk 0:00:04]}  g5 {[%clk 0:00:22]} 42. fxg5 {[%clk 0:00:04]}  Rxe5 {[%clk 0:00:22]} 43. h4 {[%clk 0:00:04]}  Bc5 {[%clk 0:00:22]} 44. Bf3 {[%clk 0:00:04]}  Bd6 {[%clk 0:00:23]} 45. Kg2 {[%clk 0:00:04]}  b5 {[%clk 0:00:23]} 46. Rh1 {[%clk 0:00:03]}  b4 {[%clk 0:00:24]} 47. Rb1 {[%clk 0:00:03]}  Re3 {[%clk 0:00:23]} 48. Kf2 {[%clk 0:00:03]}  Bc5 {[%clk 0:00:23]} 49. Kg2 {[%clk 0:00:03]}  b3 {[%clk 0:00:23]} 50. h5 {[%clk 0:00:03]}  Bd4 {[%clk 0:00:23]} 51. Rd1 {[%clk 0:00:02]}  b2 {[%clk 0:00:23]} 52. Rb1 {[%clk 0:00:02]}  Re5 {[%clk 0:00:22]} 53. g6 {[%clk 0:00:01]}  fxg6 {[%clk 0:00:22]} 54. hxg6 {[%clk 0:00:02]}  Kxg6 {[%clk 0:00:23]} 55. Kg3 {[%clk 0:00:02]}  Kg5 {[%clk 0:00:23]} 56. Kg2 {[%clk 0:00:02]}  Kf4 {[%clk 0:00:23]} 57. Rh1 {[%clk 0:00:02]}  Rg5+ {[%clk 0:00:23]} 0-1


[Site "https://www.chess.com"]

[Event "Early Titled Tuesday Blitz | February 8 2022"]
[White "Tarasova, Viktoriya"]
[Black "Minina, Veronika"]
[WhiteFideId "4175840"]
[BlackFideId "4174780"]
[WhiteElo "2182"]
[BlackElo "1850"]
[Result "1-0"]
[Round "08"]
[TimeControl "180+1"]
[Date "2022.02.08"]
[WhiteClock "0:02:02"]
[BlackClock "0:01:25"]

1. d4 {[%clk 0:02:56]}  Nf6 {[%clk 0:02:58]} 2. c4 {[%clk 0:02:56]}  g6 {[%clk 0:02:58]} 3. Nc3 {[%clk 0:02:55]}  Bg7 {[%clk 0:02:59]} 4. e4 {[%clk 0:02:55]}  d6 {[%clk 0:03:00]} 5. h3 {[%clk 0:02:56]}  O-O {[%clk 0:03:00]} 6. Be3 {[%clk 0:02:55]}  c5 {[%clk 0:02:57]} 7. d5 {[%clk 0:02:55]}  e6 {[%clk 0:02:57]} 8. Bd3 {[%clk 0:02:55]}  exd5 {[%clk 0:02:57]} 9. exd5 {[%clk 0:02:56]}  Na6 {[%clk 0:02:44]} 10. a3 {[%clk 0:02:55]}  Nc7 {[%clk 0:02:42]} 11. a4 {[%clk 0:02:54]}  b6 {[%clk 0:02:39]} 12. Nf3 {[%clk 0:02:54]}  a6 {[%clk 0:02:39]} 13. O-O {[%clk 0:02:53]}  Bb7 {[%clk 0:02:36]} 14. Qd2 {[%clk 0:02:46]}  b5 {[%clk 0:02:31]} 15. axb5 {[%clk 0:02:30]}  axb5 {[%clk 0:02:31]} 16. Rxa8 {[%clk 0:02:29]}  Bxa8 {[%clk 0:02:05]} 17. b3 {[%clk 0:02:27]}  bxc4 {[%clk 0:01:51]} 18. bxc4 {[%clk 0:02:27]}  Re8 {[%clk 0:01:49]} 19. Ra1 {[%clk 0:02:24]}  Qb8 {[%clk 0:01:43]} 20. Bf4 {[%clk 0:02:22]}  Qb6 {[%clk 0:01:36]} 21. Rb1 {[%clk 0:02:13]}  Qa5 {[%clk 0:01:32]} 22. Nb5 {[%clk 0:02:05]}  Nxb5 {[%clk 0:01:25]} 23. Qxa5 {[%clk 0:02:02]} 1-0


[Site "https://www.chess.com"]

[Event "Early Titled Tuesday Blitz | February 8 2022"]
[White "Terletsky, Oleg"]
[Black "Kiseleva, Arina"]
[WhiteFideId "14116774"]
[BlackFideId "4164989"]
[WhiteElo "2050"]
[BlackElo "1866"]
[Result "1-0"]
[Round "08"]
[TimeControl "180+1"]
[Date "2022.02.08"]
[WhiteClock "0:00:13"]
[BlackClock "0:00:01"]

1. e4 {[%clk 0:03:00]}  c6 {[%clk 0:02:57]} 2. d4 {[%clk 0:03:00]}  d5 {[%clk 0:02:56]} 3. Nc3 {[%clk 0:03:01]}  dxe4 {[%clk 0:02:56]} 4. Nxe4 {[%clk 0:03:01]}  Nf6 {[%clk 0:02:56]} 5. Nxf6+ {[%clk 0:03:01]}  exf6 {[%clk 0:02:57]} 6. c3 {[%clk 0:03:02]}  Bd6 {[%clk 0:02:56]} 7. Bd3 {[%clk 0:03:02]}  Na6 {[%clk 0:02:57]} 8. Qc2 {[%clk 0:02:57]}  Nc7 {[%clk 0:02:49]} 9. Ne2 {[%clk 0:02:46]}  Bg4 {[%clk 0:02:48]} 10. f3 {[%clk 0:02:40]}  Bh5 {[%clk 0:02:45]} 11. Nf4 {[%clk 0:02:30]}  Bg6 {[%clk 0:02:38]} 12. Bd2 {[%clk 0:02:01]}  Qe7+ {[%clk 0:02:14]} 13. Kf2 {[%clk 0:02:00]}  O-O {[%clk 0:02:01]} 14. Rae1 {[%clk 0:01:57]}  Qd7 {[%clk 0:01:59]} 15. Nxg6 {[%clk 0:01:51]}  hxg6 {[%clk 0:01:58]} 16. h4 {[%clk 0:01:49]}  Nd5 {[%clk 0:01:43]} 17. h5 {[%clk 0:01:48]}  f5 {[%clk 0:01:37]} 18. h6 {[%clk 0:01:42]}  Bf4 {[%clk 0:00:58]} 19. hxg7 {[%clk 0:01:40]}  Kxg7 {[%clk 0:00:57]} 20. c4 {[%clk 0:01:40]}  Bxd2 {[%clk 0:00:51]} 21. Qxd2 {[%clk 0:01:39]}  Nc7 {[%clk 0:00:29]} 22. d5 {[%clk 0:01:09]}  cxd5 {[%clk 0:00:24]} 23. Qh6+ {[%clk 0:01:04]}  Kf6 {[%clk 0:00:23]} 24. Qh4+ {[%clk 0:00:34]}  Kg7 {[%clk 0:00:21]} 25. Qd4+ {[%clk 0:00:26]}  f6 {[%clk 0:00:21]} 26. cxd5 {[%clk 0:00:20]}  Nxd5 {[%clk 0:00:11]} 27. Bc4 {[%clk 0:00:20]}  Rad8 {[%clk 0:00:10]} 28. Bxd5 {[%clk 0:00:17]}  Qxd5 {[%clk 0:00:10]} 29. Re7+ {[%clk 0:00:17]}  Rf7 {[%clk 0:00:05]} 30. Rxf7+ {[%clk 0:00:16]}  Kxf7 {[%clk 0:00:04]} 31. Rh7+ {[%clk 0:00:16]}  Kg8 {[%clk 0:00:04]} 32. Qxd5+ {[%clk 0:00:16]}  Rxd5 {[%clk 0:00:03]} 33. Rxb7 {[%clk 0:00:17]}  a5 {[%clk 0:00:01]} 34. Ke3 {[%clk 0:00:16]}  Re5+ {[%clk 0:00:02]} 35. Kf4 {[%clk 0:00:15]}  Re2 {[%clk 0:00:02]} 36. g4 {[%clk 0:00:15]}  fxg4 {[%clk 0:00:01]} 37. Kxg4 {[%clk 0:00:15]}  Kf8 {[%clk 0:00:02]} 38. Kf4 {[%clk 0:00:15]}  Rd2 {[%clk 0:00:01]} 39. a3 {[%clk 0:00:15]}  a4 {[%clk 0:00:01]} 40. Ke4 {[%clk 0:00:15]}  Rc2 {[%clk 0:00:01]} 41. Rb4 {[%clk 0:00:14]}  Re2+ {[%clk 0:00:01]} 42. Kd3 {[%clk 0:00:14]}  Rf2 {[%clk 0:00:01]} 43. Ke3 {[%clk 0:00:15]}  Rc2 {[%clk 0:00:01]} 44. Rxa4 {[%clk 0:00:13]}  Kf7 {[%clk 0:00:01]} 45. Rb4 {[%clk 0:00:13]}  Rg2 {[%clk 0:00:01]} 46. Rb6 {[%clk 0:00:13]}  g5 {[%clk 0:00:02]} 47. a4 {[%clk 0:00:13]}  Kg6 {[%clk 0:00:02]} 48. a5 {[%clk 0:00:13]}  Rg1 {[%clk 0:00:02]} 49. a6 {[%clk 0:00:13]}  Ra1 {[%clk 0:00:03]} 50. b4 {[%clk 0:00:13]}  Kf5 {[%clk 0:00:02]} 51. Rb5+ {[%clk 0:00:12]}  Ke6 {[%clk 0:00:01]} 52. Ra5 {[%clk 0:00:13]}  Rb1 {[%clk 0:00:01]} 53. a7 {[%clk 0:00:13]} 1-0


[Site "https://www.chess.com"]

[Event "Early Titled Tuesday Blitz | February 8 2022"]
[White "Toncheva, Nadya"]
[Black "Zarnicki, Pablo"]
[WhiteFideId "2924056"]
[BlackFideId "100137"]
[WhiteElo "1920"]
[BlackElo "2467"]
[Result "0-1"]
[Round "08"]
[TimeControl "180+1"]
[Date "2022.02.08"]
[WhiteClock "0:00:02"]
[BlackClock "0:00:13"]

1. e4 {[%clk 0:03:00]}  c5 {[%clk 0:02:59]} 2. Nf3 {[%clk 0:03:01]}  d6 {[%clk 0:02:59]} 3. c3 {[%clk 0:03:00]}  Nf6 {[%clk 0:02:59]} 4. Bd3 {[%clk 0:03:01]}  Nc6 {[%clk 0:02:59]} 5. O-O {[%clk 0:03:01]}  Bg4 {[%clk 0:02:59]} 6. h3 {[%clk 0:03:00]}  Bh5 {[%clk 0:02:55]} 7. Re1 {[%clk 0:02:58]}  e6 {[%clk 0:02:55]} 8. Bf1 {[%clk 0:02:58]}  Be7 {[%clk 0:02:55]} 9. d4 {[%clk 0:02:56]}  cxd4 {[%clk 0:02:53]} 10. cxd4 {[%clk 0:02:57]}  d5 {[%clk 0:02:54]} 11. e5 {[%clk 0:02:56]}  Ne4 {[%clk 0:02:54]} 12. Bd3 {[%clk 0:02:49]}  Nxd4 {[%clk 0:02:41]} 13. Bxe4 {[%clk 0:02:40]}  dxe4 {[%clk 0:02:35]} 14. Qxd4 {[%clk 0:02:30]}  exf3 {[%clk 0:02:35]} 15. Qa4+ {[%clk 0:02:24]}  Qd7 {[%clk 0:02:33]} 16. Qxd7+ {[%clk 0:02:21]}  Kxd7 {[%clk 0:02:32]} 17. g4 {[%clk 0:02:22]}  Bg6 {[%clk 0:02:26]} 18. Nd2 {[%clk 0:02:22]}  h5 {[%clk 0:02:23]} 19. Nxf3 {[%clk 0:02:21]}  hxg4 {[%clk 0:02:11]} 20. hxg4 {[%clk 0:02:22]}  Rh3 {[%clk 0:02:11]} 21. Kg2 {[%clk 0:02:18]}  Rah8 {[%clk 0:02:05]} 22. Bf4 {[%clk 0:02:16]}  Kc7 {[%clk 0:01:50]} 23. Rac1+ {[%clk 0:02:13]}  Kb8 {[%clk 0:01:44]} 24. Bg3 {[%clk 0:02:05]}  Bd3 {[%clk 0:01:42]} 25. Red1 {[%clk 0:01:52]}  Bb5 {[%clk 0:01:38]} 26. Nd4 {[%clk 0:01:37]}  Be8 {[%clk 0:01:28]} 27. Rc3 {[%clk 0:01:15]}  Bb4 {[%clk 0:01:19]} 28. Rc4 {[%clk 0:01:12]}  Ba5 {[%clk 0:01:13]} 29. Rdc1 {[%clk 0:01:09]}  a6 {[%clk 0:01:00]} 30. Rc8+ {[%clk 0:01:03]}  Ka7 {[%clk 0:00:38]} 31. Bf4 {[%clk 0:01:01]}  Bb6 {[%clk 0:00:36]} 32. Be3 {[%clk 0:00:30]}  Rh2+ {[%clk 0:00:36]} 33. Kf3 {[%clk 0:00:30]}  R8h3+ {[%clk 0:00:36]} 34. Ke4 {[%clk 0:00:24]}  f5+ {[%clk 0:00:36]} 35. gxf5 {[%clk 0:00:20]}  Rh4+ {[%clk 0:00:35]} 36. Kd3 {[%clk 0:00:19]}  Bd7 {[%clk 0:00:29]} 37. R8c3 {[%clk 0:00:13]}  R2h3 {[%clk 0:00:27]} 38. Ne2 {[%clk 0:00:07]}  Bb5+ {[%clk 0:00:26]} 39. Kd2 {[%clk 0:00:06]}  Bxe3+ {[%clk 0:00:27]} 40. fxe3 {[%clk 0:00:07]}  Rh2 {[%clk 0:00:24]} 41. Re1 {[%clk 0:00:07]}  exf5 {[%clk 0:00:23]} 42. b3 {[%clk 0:00:07]}  Rg2 {[%clk 0:00:22]} 43. a4 {[%clk 0:00:07]}  Bc6 {[%clk 0:00:20]} 44. Kd3 {[%clk 0:00:06]}  Be4+ {[%clk 0:00:20]} 45. Kd2 {[%clk 0:00:07]}  Rhh2 {[%clk 0:00:20]} 46. Rc7 {[%clk 0:00:07]}  Bf3 {[%clk 0:00:19]} 47. Kc3 {[%clk 0:00:06]}  Rxe2 {[%clk 0:00:19]} 48. Rg1 {[%clk 0:00:05]}  Rxe3+ {[%clk 0:00:19]} 49. Kb4 {[%clk 0:00:06]}  Re4+ {[%clk 0:00:18]} 50. Ka3 {[%clk 0:00:06]}  Bg4 {[%clk 0:00:14]} 51. Rgc1 {[%clk 0:00:05]}  Ree2 {[%clk 0:00:13]} 52. Rxg7 {[%clk 0:00:05]}  a5 {[%clk 0:00:13]} 53. Ra1 {[%clk 0:00:05]}  Rh3 {[%clk 0:00:13]} 54. Rc7 {[%clk 0:00:02]}  Ree3 {[%clk 0:00:12]} 55. Rb1 {[%clk 0:00:02]}  Rxe5 {[%clk 0:00:13]} 56. Rd7 {[%clk 0:00:01]}  f4 {[%clk 0:00:13]} 57. Rd4 {[%clk 0:00:02]}  Bf5 {[%clk 0:00:13]} 58. Rxf4 {[%clk 0:00:02]}  Bxb1 {[%clk 0:00:13]} 59. Rf7 {[%clk 0:00:02]}  Ree3 {[%clk 0:00:13]} 0-1


[Site "https://www.chess.com"]

[Event "Early Titled Tuesday Blitz | February 8 2022"]
[White "Tregubov, Pavel V."]
[Black "Dilmukhametov, Artur"]
[WhiteFideId "4115341"]
[BlackFideId "24179922"]
[WhiteElo "2341"]
[BlackElo "2266"]
[Result "0-1"]
[Round "08"]
[TimeControl "180+1"]
[Date "2022.02.08"]
[WhiteClock "0:00:09"]
[BlackClock "0:00:04"]

1. e4 {[%clk 0:03:00]}  c5 {[%clk 0:02:56]} 2. Nf3 {[%clk 0:03:00]}  Nc6 {[%clk 0:02:57]} 3. c3 {[%clk 0:02:57]}  d6 {[%clk 0:02:57]} 4. d4 {[%clk 0:02:57]}  Nf6 {[%clk 0:02:57]} 5. Bd3 {[%clk 0:02:54]}  e5 {[%clk 0:02:56]} 6. O-O {[%clk 0:02:49]}  g6 {[%clk 0:02:55]} 7. Nbd2 {[%clk 0:02:36]}  Bg7 {[%clk 0:02:54]} 8. dxe5 {[%clk 0:02:34]}  dxe5 {[%clk 0:02:53]} 9. Nc4 {[%clk 0:02:34]}  Qc7 {[%clk 0:02:41]} 10. Bg5 {[%clk 0:02:24]}  O-O {[%clk 0:02:40]} 11. Ne3 {[%clk 0:02:23]}  Be6 {[%clk 0:02:35]} 12. Qe2 {[%clk 0:02:16]}  h6 {[%clk 0:02:30]} 13. Bxf6 {[%clk 0:02:16]}  Bxf6 {[%clk 0:02:31]} 14. Nd5 {[%clk 0:02:14]}  Bxd5 {[%clk 0:02:24]} 15. exd5 {[%clk 0:02:14]}  Ne7 {[%clk 0:02:20]} 16. c4 {[%clk 0:02:08]}  Nc8 {[%clk 0:02:16]} 17. h4 {[%clk 0:02:00]}  h5 {[%clk 0:02:10]} 18. Nd2 {[%clk 0:01:42]}  Nd6 {[%clk 0:02:07]} 19. g4 {[%clk 0:01:29]}  hxg4 {[%clk 0:01:31]} 20. Qxg4 {[%clk 0:01:29]}  e4 {[%clk 0:01:04]} 21. Nxe4 {[%clk 0:01:13]}  Nxe4 {[%clk 0:01:03]} 22. Bxe4 {[%clk 0:01:14]}  Rfe8 {[%clk 0:00:50]} 23. Rae1 {[%clk 0:01:09]}  Re5 {[%clk 0:00:29]} 24. f4 {[%clk 0:00:42]}  Rh5 {[%clk 0:00:21]} 25. Bxg6 {[%clk 0:00:42]}  Rxh4 {[%clk 0:00:22]} 26. Bxf7+ {[%clk 0:00:39]}  Kxf7 {[%clk 0:00:16]} 27. Qe6+ {[%clk 0:00:39]}  Kg7 {[%clk 0:00:16]} 28. Re2 {[%clk 0:00:35]}  Qf7 {[%clk 0:00:06]} 29. Rg2+ {[%clk 0:00:35]}  Kf8 {[%clk 0:00:07]} 30. f5 {[%clk 0:00:29]}  Bd4+ {[%clk 0:00:06]} 31. Rff2 {[%clk 0:00:27]}  Bxf2+ {[%clk 0:00:06]} 32. Kxf2 {[%clk 0:00:27]}  Rf4+ {[%clk 0:00:06]} 33. Ke3 {[%clk 0:00:27]}  Rxf5 {[%clk 0:00:06]} 34. Qd6+ {[%clk 0:00:21]}  Qe7+ {[%clk 0:00:06]} 35. Qxe7+ {[%clk 0:00:21]}  Kxe7 {[%clk 0:00:07]} 36. Ke4 {[%clk 0:00:22]}  Rf7 {[%clk 0:00:07]} 37. Rg6 {[%clk 0:00:21]}  Kd7 {[%clk 0:00:06]} 38. Kd3 {[%clk 0:00:16]}  Rh8 {[%clk 0:00:07]} 39. a3 {[%clk 0:00:14]}  Rh3+ {[%clk 0:00:07]} 40. Kc2 {[%clk 0:00:14]}  Rf2+ {[%clk 0:00:04]} 41. Kb1 {[%clk 0:00:14]}  Rhh2 {[%clk 0:00:05]} 42. Rg7+ {[%clk 0:00:13]}  Kd6 {[%clk 0:00:05]} 43. Rxb7 {[%clk 0:00:13]}  a5 {[%clk 0:00:05]} 44. a4 {[%clk 0:00:12]}  Rd2 {[%clk 0:00:05]} 45. Ka2 {[%clk 0:00:12]}  Rc2 {[%clk 0:00:05]} 46. Rb5 {[%clk 0:00:09]}  Rxc4 {[%clk 0:00:05]} 47. Rxa5 {[%clk 0:00:10]}  Rb4 {[%clk 0:00:04]} 48. Ka3 {[%clk 0:00:09]}  Rhxb2 {[%clk 0:00:03]} 49. Ra6+ {[%clk 0:00:08]}  Kxd5 {[%clk 0:00:04]} 50. a5 {[%clk 0:00:08]}  R4b3+ {[%clk 0:00:04]} 51. Ka4 {[%clk 0:00:09]}  Rb4+ {[%clk 0:00:04]} 52. Ka3 {[%clk 0:00:09]}  Rb1 {[%clk 0:00:04]} 53. Ra8 {[%clk 0:00:09]}  Ra1# {[%clk 0:00:04]} 0-1


[Site "https://www.chess.com"]